Cogmind - Beta 15 @@@ ROGUE MODE // 2025.10.12 @ 10:28:28 Player: GermanMO Result: Destroyed by G-50 Soldier with Heavy Laser Performance ------------- Evolutions (2) 1000 Regions Visited (3) 600 Robots Destroyed (58) 290 Value Destroyed (1442) 1442 Prototype IDs (1) 20 Alien Tech Used (0) 0 Bonus (0) 0 TOTAL SCORE: 3352 Bonus ------- None Cogmind --------- Core Integrity 0/550 Matter 255/300 Energy 29/100 System Corruption 20% Temperature Cool (63) Movement Core (50) Location -8/Materials Parts ------- > --- POWER (2) -------- (None) > --- PROPULSION (3) --- (None) > --- UTILITY (4) ------ Salvage Targeting Computer Salvage Targeting Computer > --- WEAPON (2) ------- Pulse Rifle > --- INVENTORY (5) ---- Improved Terrain Scanner Peak State ------------ > --- POWER ------------ Deuterium Engine Light Deuterium Engine > --- PROPULSION ------- Improved Aluminum Leg Carbon-fiber Leg > --- UTILITY ---------- Small Storage Unit Improved Sensor Array Signal Interpreter Improved Light Armor Plating > --- WEAPON ----------- Improved Medium Laser Concussive RPG > --- INVENTORY -------- Improved Terrain Scanner Salvage Targeting Computer Salvage Targeting Computer Mini Grenade Launcher Scythe [Rating: 26] Favorites ----------- Power Light Ion Engine Engine Light Ion Engine Power Core Light Nuclear Core Propulsion Wheel Treads Light Treads Leg Carbon-fiber Leg Wheel Wheel Utility Small Storage Unit Device Sensor Array Storage Small Storage Unit Processor Signal Interpreter Protection Improved Light Armor Plating Weapon Light Assault Rifle Energy Gun Improved Medium Laser Energy Cannon Particle Cannon Ballistic Gun Light Assault Rifle Launcher Mini Grenade Launcher Special Weapon Mining Laser Slashing Weapon Scythe Build | -11 -10 -9 -8 ------- Run | Yrd Mat Mat Mat Slots Evolved 4 | . . 2 2 Power 1 | . . . 1 Propulsion 1 | . . . 1 Utility 2 | . . 2 . Weapon . | . . . . Parts Attached 43 | 7 9 13 14 Power 7 | 1 2 1 3 Engine 6 | 1 1 1 3 Core 1 | . 1 . . Reactor . | . . . . Propulsion 11 | 3 . 5 3 Treads 2 | . . . 2 Leg 6 | . . 5 1 Wheel 3 | 3 . . . Hover . | . . . . Flight . | . . . . Utility 9 | 1 2 3 3 Device 2 | . . 1 1 Storage 1 | 1 . . . Processor 3 | . 1 . 2 Hackware . | . . . . Protection 3 | . 1 2 . Artifact . | . . . . Weapon 16 | 2 5 4 5 Energy Gun 5 | 1 . 3 1 Energy Cannon 1 | . . 1 . Ballistic Gun 5 | 1 3 . 1 Ballistic Cannon . | . . . . Launcher 2 | . . . 2 Special Weapon 2 | . 2 . . Impact Weapon . | . . . . Slashing Weapon 1 | . . . 1 Piercing Weapon . | . . . . Special Melee Weapon . | . . . . Unidentified Prototypes 1 | . . 1 . Parts Lost 20 | . 2 5 13 Power 4 | . 1 1 2 Propulsion 4 | . . . 4 Utility 5 | . . 1 4 Weapon 7 | . 1 3 3 Highest Loss Streak 5 | . 1 5 4 To Critical Strikes . | . . . . Average Backups 5 | 2 5 7 5 Power . | 1 1 . . Propulsion . | . . . . Utility 3 | . 4 3 2 Weapon 1 | 1 . 1 1 Tool/Special . | . . . . Unused Backups 7 | . 2 3 2 Power 1 | . . 1 . Propulsion . | . . . . Utility 5 | . 2 2 1 Weapon 1 | . . . 1 Tool/Special . | . . . . Average Slot Usage (%) 87 | . 96 91 76 Engine 12 | . 12 9 14 Leg 11 | . . 18 14 Wheel 8 | . 27 3 . Device 6 | . . 10 8 Storage 10 | . 14 11 8 Processor 6 | . . 11 8 Protection 9 | . 13 9 6 Energy Gun 7 | . 5 8 7 Energy Cannon 1 | . . 3 . Ballistic Gun 9 | . 19 5 5 Peak Build Rating 26 | 7 9 19 26 Average Rating 13 | 4 7 15 18 On Entrance 7 | . 6 7 16 Naked Turns . | . . . . Heaviest Build 27 | 11 13 21 27 Greatest Support 40 | 26 20 30 40 Greatest Overweight (x) 5 | . . 2 5 Average Overweight (x) . | . . . . Largest Inventory Capacity 8 | 8 8 8 8 Average Capacity 7 | 7 8 8 7 Most Carried 8 | 6 8 8 7 Average Carried 5 | 2 5 7 5 Final Capacity 8 | 8 8 8 5 Final Carried 8 | 5 8 6 1 Class Distribution -------------------- 90% | Mutant 9% | Scavenger-Mutant Dominant Class ---------------- Mutant | -10/Materials Mutant | -9/Materials Mutant | -8/Materials Resources | -11 -10 -9 -8 ----------- Run | Yrd Mat Mat Mat Matter Collected 841 | 313 173 180 175 Remotely . | . . . . Salvage Created 1934 | 225 430 767 512 Parts 128 | 21 41 41 25 Haulers Intercepted 2 | . . 2 . Recyclers Shooed 2 | 1 1 . . Parts Field Recycled . | . . . . Retrieved Matter . | . . . . Parts Self-Destructed . | . . . . Prevented . | . . . . Kills | -11 -10 -9 -8 ------- Run | Yrd Mat Mat Mat Combat Hostiles Destroyed 37 | . 9 17 11 Melee 3 | . . . 3 Guns 28 | . 9 13 6 Cannons 3 | . . 3 . AOE 2 | . . . 2 Classes Destroyed 13 | 3 5 3 2 Worker 3 | 2 1 . . Builder 3 | . 2 1 . Tunneler 5 | 5 . . . Hauler 2 | . . 2 . Recycler 2 | 1 1 . . Operator 2 | . 1 1 . Watcher 4 | . 2 . 2 Swarmer 9 | . 3 3 3 Grunt 19 | . 6 11 2 Brawler 2 | . . . 2 Duelist 2 | . . 1 1 Sentry 4 | . . 2 2 Hunter 1 | . . . 1 Best Kill Streak 9 | 6 4 9 3 Combat Bots Only 9 | . 3 9 3 Max Kills in Single Turn 2 | 1 1 2 1 Gunslinging 1 | . . 1 . Exploded 1 | . . . 1 Melee 1 | . . . 1 Uniques/NPCs Destroyed . | . . . . Combat | -11 -10 -9 -8 -------- Run | Yrd Mat Mat Mat Hostile Shots Fired 296 | . 49 113 134 Missed 72 | . 14 20 38 Hits 224 | . 35 93 96 Melee 13 | . . 1 12 Projectile 211 | . 35 92 84 Critical Strikes 8 | . . 3 5 Damage Taken 3260 | 27 378 1194 1661 Core 969 | . 69 333 567 Absorbed by Shields . | . . . . Redirected to Shielding 15 | . 15 . . Regen/Repaired (Parts) 35 | . 35 . . Core Remaining (%) 62 | 100 72 16 . Volleys Fired 183 | 17 56 60 50 Largest 2 | 2 2 2 2 Hottest 133 | 60 100 133 76 Shots Fired 304 | 34 104 99 67 Gun 276 | 34 98 84 60 Cannon 13 | . . 13 . Launcher 7 | . . . 7 Special 8 | . 6 2 . Kinetic 159 | 17 89 30 23 Thermal 112 | . 6 69 37 Explosive 7 | . . . 7 Electromagnetic 26 | 17 9 . . Robot Hit Streak 9 | 5 9 8 7 Robot Miss Streak 6 | 2 6 4 4 Penetration Max . | . . . . Secondary Targets 3 | . 1 2 . Max Gunslinging Chain 1 | . 1 1 . Shots Hit Robots 183 | 19 48 65 51 Core Hits 97 | 13 30 29 25 Critical Kills . | . . . . Critical Parts Destroyed . | . . . . Critical Strikes 8 | . . 3 5 Burn 5 | . . 3 2 Sever 3 | . . . 3 Melee Attacks 23 | . . . 23 Impact . | . . . . Slashing 23 | . . . 23 Piercing . | . . . . Sneak Attacks . | . . . . Combat Hostiles . | . . . . Follow-up Attacks . | . . . . Damage Inflicted 2766 | 293 460 933 1080 Guns 1822 | 235 436 771 380 Cannons 173 | . . 162 11 Explosions 322 | 58 . . 264 Melee 425 | . . . 425 Ramming . | . . . . Kinetic 734 | 76 377 154 127 Thermal 1114 | 58 24 779 253 Explosive 264 | . . . 264 Electromagnetic 218 | 159 59 . . Impact 11 | . . . 11 Slashing 425 | . . . 425 Piercing . | . . . . Highest Corruption 20 | . . . 20 Average Corruption 7 | . . . 7 Corruption Purged . | . . . . Corruption Blocked . | . . . . Effects 7 | . . . 7 Message Errors 2 | . . . 2 Matter Fused 1 | . . . 1 Energy Discharges 2 | . . . 2 Parts Rejected 1 | . . . 1 Weapon Failures 1 | . . . 1 Overload Shots . | . . . . Overflow Damage 22 | 3 . . 19 Projectiles . | . . . . Explosions 19 | 3 . . 16 Melee 3 | . . . 3 Knockbacks . | . . . . Impact . | . . . . Kinetic . | . . . . Secondary . | . . . . Self-Inflicted Damage 113 | 27 . . 86 Shots 4 | 1 . . 3 Rammed . | . . . . Targets Rammed . | . . . . Kicked . | . . . . Crushed . | . . . . Highest Temperature 562 | 52 40 562 318 Average Temperature 130 | 25 14 222 87 Received Heat Transfer 960 | . 168 360 432 Effects 19 | . . 18 1 Energy Bleed 3 | . . 3 . Interference 5 | . . 4 1 Short Circuit 3 | . . 3 . Damage (minor) 2 | . . 2 . Damage (major) 3 | . . 3 . Damage (core) 3 | . . 3 . Siege Activations . | . . . . Martial Activations . | . . . . Shielding Activations . | . . . . Robots Disrupted . | . . . . Combat Hostiles . | . . . . Robots Corrupted . | . . . . Combat Hostiles . | . . . . Parts Fried . | . . . . Impact Corruptions . | . . . . Robots Melted 1 | . . 1 . Combat Hostiles 1 | . . 1 . Parts Melted 2 | . . . 2 Heat Transferred 2777 | 100 50 1924 703 Parts Sabotaged . | . . . . Parts Stolen . | . . . . Parts Stripped . | . . . . Power Chain Reactions 1 | 1 . . . Alert | -11 -10 -9 -8 ------- Run | Yrd Mat Mat Mat Maximum Alert Level 1 | . . 1 . Low Security (%) 89 | 100 100 65 100 Level 1 10 | . . 34 . Level 2 . | . . . . Level 3 . | . . . . Level 4 . | . . . . Level 5 . | . . . . High Security . | . . . . Max Security . | . . . . Peak Influence 261 | 10 172 261 169 Initial 89 | . 6 46 89 Average 83 | 3 71 126 70 Influence Increases 1271 | 40 301 509 421 Destroy 0b10 Robot/C 740 | . 180 340 220 Destroy 0b10 Robot/NC 105 | 40 35 20 10 Destroy Leader 182 | . 44 74 64 Successful Hack 12 | . 12 . . Disable Machine 105 | . 15 60 30 Destroy Structure 52 | . . . 52 Lose Combat Pursuer 75 | . 15 15 45 Influence Decreases 1219 | 30 199 410 580 Entered New Map 192 | . 4 66 122 Time Decay 837 | 30 185 294 328 Lost Part 190 | . 10 50 130 Squads Dispatched 6 | . 2 2 2 Investigation 2 | . 1 1 . Extermination . | . . . . Reinforcement 3 | . 1 1 1 Assault . | . . . . Garrison 1 | . . . 1 Intercept . | . . . . Searches Triggered . | . . . . Construction Impeded . | . . . . Haulers Reinforced . | . . . . Active Scanning Responses . | . . . . Cargo Convoy Interrupts . | . . . . Stealth | -11 -10 -9 -8 --------- Run | Yrd Mat Mat Mat Distress Signals 6 | . . 2 4 Communications Jammed . | . . . . Distress Signals . | . . . . Times Spotted 59 | . 13 21 25 Peak Tracking Total 8 | . 3 8 7 Tactical Retreats 4 | . 1 1 2 Traps | -11 -10 -9 -8 ------- Run | Yrd Mat Mat Mat Traps Triggered 4 | . 1 3 . Indirectly . | . . . . Trap Hack Attempts . | . . . . Triggered . | . . . . Disarmed . | . . . . Reprogrammed . | . . . . Reused . | . . . . Traps Extracted . | . . . . Installed . | . . . . Triggered . | . . . . Machines | -11 -10 -9 -8 ---------- Run | Yrd Mat Mat Mat Machines Disabled 7 | . 1 4 2 Max in Single Turn 1 | . 1 1 1 Machines Repaired . | . . . . Machines Dismantled . | . . . . Machines Sabotaged . | . . . . Overloaded Fab Kills . | . . . . Hacking | -11 -10 -9 -8 --------- Run | Yrd Mat Mat Mat Machines Accessed 2 | . 2 . . Terminals . | . . . . Fabricators . | . . . . Repair Stations 1 | . 1 . . Recycling Units 1 | . 1 . . Scanalyzers . | . . . . Garrison Access . | . . . . Total Hacks 6 | . 6 . . Successful 5 | . 5 . . Failed 1 | . 1 . . Catastrophic . | . . . . Database Lockouts . | . . . . Manual 1 | . . . 1 Terminals . | . . . . Fabricators . | . . . . Repair Stations 2 | . 2 . . Recycling Units 4 | . 4 . . Scanalyzers . | . . . . Garrison Access . | . . . . Terminal Hacks . | . . . . Fabricator Hacks . | . . . . Repair Station Hacks 2 | . 2 . . Scan Component 1 | . 1 . . Repair 1 | . 1 . . Recycling Unit Hacks 3 | . 3 . . Recycle Component 1 | . 1 . . Process 1 | . 1 . . Report Inventory 1 | . 1 . . Scanalyzer . | . . . . Garrison Access Hacks . | . . . . Unauthorized Hacks . | . . . . Terminals . | . . . . Fabricators . | . . . . Repair Stations . | . . . . Recycling Units . | . . . . Scanalyzers . | . . . . Garrison Access . | . . . . Data Cores Recovered . | . . . . Used . | . . . . Hacking Detections . | . . . . Full Trace Events . | . . . . Feedback Events . | . . . . Feedback Blocked . | . . . . Robot Schematics Acquired . | . . . . Robots Built . | . . . . Authchips . | . . . . Time . | . . . . Total Robot Build Rating . | . . . . Part Schematics Acquired . | . . . . Parts Built . | . . . . Authchips . | . . . . Time . | . . . . Total Part Build Rating . | . . . . Parts Repaired 1 | . 1 . . Time 13 | . 13 . . Parts Recycled 1 | . 1 . . Recycled Matter 10 | . 10 . . Retrieved Matter . | . . . . Retrieved Components . | . . . . Parts Scanalyzed . | . . . . Part Schematics Acquired . | . . . . Parts Damaged . | . . . . Bothacking | -11 -10 -9 -8 ------------ Run | Yrd Mat Mat Mat Used RIF Installer . | . . . . Robots Hacked . | . . . . Non-combat . | . . . . Combat . | . . . . Robot Hacks Applied . | . . . . Relay Couplers Released . | . . . . Fabnet Peak Effective % . | . . . . Robots Rewired . | . . . . Allies Hacked . | . . . . Hacks Repelled . | . . . . Allies | -11 -10 -9 -8 -------- Run | Yrd Mat Mat Mat Total Allies . | . . . . Largest Group . | . . . . Highest-Rated Group . | . . . . Highest-Rated Ally . | . . . . Total Orders . | . . . . Ally Attacks . | . . . . Total Damage . | . . . . Kills . | . . . . Allies Corrupted . | . . . . Allies Melted . | . . . . Intel | -11 -10 -9 -8 ------- Run | Yrd Mat Mat Mat Active Infowar (turns) 1035 | . . 335 700 Sensors 1035 | . . 335 700 Robot Analysis Total . | . . . . Derelict Logs Recovered . | . . . . Drone Launches . | . . . . Drone Recoveries . | . . . . Exploration | -11 -10 -9 -8 ------------- Run | Yrd Mat Mat Mat Turns Passed 2177 | 134 581 646 816 Spaces Moved 1220 | 79 438 372 331 Core 50 | 5 . 6 39 Treads 1 | . . . 1 Legs 597 | . . 306 291 Wheels 572 | 74 438 60 . Hover . | . . . . Flight . | . . . . Fastest Speed 50 | 50 80 80 50 Average Speed 103 | 83 80 114 125 Slowest Speed 300 | 90 80 190 300 Overloaded Moves . | . . . . Propulsion Burnouts . | . . . . Robots Hopped . | . . . . Potential Cave-ins . | . . . . Cave-ins Triggered . | . . . . Exploration Rate (%) 28 | 4 48 34 26 Regions Visited 3 Branch Regions . Pre-discovered Areas . | . . . . Known Exits Taken 2 | . 1 1 . Unknown Exits Taken 1 | 1 . . . Scrap Searched . | . . . . Spaces Dug . | . . . . Terrain Destroyed 62 | . . . 62 Melee . | . . . . Projectile . | . . . . AOE 62 | . . . 62 Terrain Rammed . | . . . . Walls Destroyed . | . . . . Machines Disabled . | . . . . Actions | -11 -10 -9 -8 --------- Run | Yrd Mat Mat Mat Total 1833 | 117 581 499 636 Wait 283 | . 56 23 204 Move 1217 | 78 437 371 331 Hop . | . . . . Pick Up 48 | 13 14 11 10 Fast Attach 9 | . . 9 . Attach 40 | 7 10 9 14 Detach 2 | . 1 1 . Swap . | . . . . Drop 28 | 2 7 15 4 Fire 183 | 17 56 60 50 Melee 23 | . . . 23 Ram . | . . . . Kick . | . . . . Crush . | . . . . Escape Stasis . | . . . . Rewire . | . . . . Trap . | . . . . Miscellaneous . | . . . . Route ------- -11/Scrapyard -10/Materials (discovered 2 exits: *Mat / [*Min]) -9/Materials (discovered 2 exits: *Mat / *Min) -8/Materials History --------- Turn | Location | Event 5 | -11/Scrapyard | Discovered new exit (range 16) 135 | -11/Scrapyard | Entered Materials 279 | -10/Materials | Discovered new exit (range 16) 308 | -10/Materials | Build established: Mutant 453 | -10/Materials | Discovered new exit (range 13) 512 | -10/Materials | Repaired Wheel 714 | -10/Materials | Identified exit to Materials 716 | -10/Materials | Entered another Materials area 716 | -9/Materials | Evolved 2 slots: Utility x2 849 | -9/Materials | Discovered new exit (range 14) 878 | -9/Materials | Identified exit to Mines 1150 | -9/Materials | Core integrity fell below 50% 1173 | -9/Materials | Core integrity fell below 20% 1189 | -9/Materials | Lost 5 parts (1p1u3w) 1195 | -9/Materials | Destroyed 9 combat bots 1339 | -9/Materials | Discovered new exit (range 9) 1353 | -9/Materials | Identified exit to Materials 1362 | -9/Materials | Entered another Materials area 1362 | -8/Materials | Evolved 2 slots: Power x1, Propulsion x1 1985 | -8/Materials | Lost 4 parts (1p1n1u1w) 2056 | -8/Materials | Lost 3 parts (1n2w) 2082 | -8/Materials | Garrison activated, responded to threat 2113 | -8/Materials | System corruption reached 10% 2121 | -8/Materials | Core integrity fell below 50% 2147 | -8/Materials | Core integrity fell below 20% 2148 | -8/Materials | Lost 4 parts (1p3u) 2178 | -8/Materials | Destroyed by G-50 Soldier with Heavy Laser Last Messages --------------- K-01 Serf collects debris. Knocked back. B-36 Bruiser destroyed. W-25 Informer sends out distress signal. 02128_ Destroyed Imp. Hover Unit. 02130_ System corrupted: Energy discharge (-38). 02145_ W-25 Informer destroyed. 02146_ B1MGOAW8AEJ8KO<4OI7LS M/U/M 02147_ K-01 Serf collects debris. 02149_ ALERT: Hostiles spotted, dispatching reinforcements to Terminal M010. 02151_ Acquired Pulse Rifle. 02157_ Acquired Lgt. Treads. 02165_ System corrupted: Scythe rejected. 02170_ Lgt. Treads severed. 02172_ System corrupted: Pulse Rifle failed to cycle. 02172_ Lgt. Treads destroyed. 02177_ L-31 Rogue destroyed. 02178_ Critical hit (Burn: +37). Map ----- +----------------------------------------------------+ | ???????????????# "" # #??????# # | | ???????????????# = " "= # #??????# # | | ???????????????# [ ####### ## #??????# # | | ???????????????## # ##????######## #??######+## | | ????????????????## ###????????????? ???# / | | ?????????????????# ##?????????????? ???# | | ???????????????### #?????????????? ???# ! | | ???????????????# # #?????????????? ???# " """" | | ??????????###### # #?????????????? ???# """"""" | | ??????????# ##??????????????????# """ "" | | ??????????# #???????????????????# | | ??????????# # #???????????????????######### | | ??????????# + #???????????????????????????? | | ??????????# ! # "%#???????????????????????????? | | ??????????# # "#???????????????????????????? | | ??????????######## ##??????????????????????????? | | ????????????????# ########???????????????????? | | #???????????????# #???????????????????? | | ????#####?????# T #???????????????????? | | #####"T"#######! #???????????????????? | | ^ =!= [%!= ##### #???????????????????? | | ^ %############ ##? #???????????????????? | | !! ^ """#????????#! [%#??????????????????????? | | !! Y"#????????#! */#??????????????????????? | | !! """#????????#! ==#??????????????????????? | | ! ##########g @#??????????????????????? | | ! /g #??????????????????????? | | #" "# #" "#######+####g "#??????????????????????? | | #"G"# #"R"#???? % ?# T#??????????????????????? | | # "?#?#"""#?? # "#??????????????????????? | | ??????###### # ! #??????????????????????? | | ???????????# ######??????????????????????? | | ???????????###########???????????????????????????? | | ?????????????????????????????????????????????????? | | ?????????????????????????????????????????????????? | | ?????????????????????????????????????????????????? | | ?????????????????????????????????????????????????? | | ?????????????????????????????????????????????????? | | ?????????????????????????????????????????????????? | | ?????????????????????????????????????????????????? | | ?????????????????????????????????????????????????? | | ?????????????????????????????????????????????????? | | ?????????????????????????????????????????????????? | | ?????????????????????????????????????????????????? | | ?????????????????????????????????????????????????? | | ?????????????????????????????????????????????????? | | ?????????????????????????????????????????????????? | | ?????????????????????????????????????????????????? | | ?????????????????????????????????????????????????? | | ?????????????????????????????????????????????????? | +----------------------------------------------------+ Best States ------------- Heat Dissipation 31 Energy Generation 23 Energy Capacity 315 Matter Stores 300 Matter Capacity 300 Sight Range 16 Robot Scan Range 15 Terrain Scan Density 10 Armor Coverage 150 Core Shielding 20 Evasion (%) 55 Recoil Reduction 2 Salvage Targeting 2 Item Schematics ----------------- None Robot Schematics ------------------ None Fabricated ------------ Nothing Repaired ---------- Wheel | 12% | -10/Materials Alien Tech Used ----------------- None Achievements -------------- None Challenges ------------ None Game ------ Seed LightpackInsulatedChainsword Manual? 0 Play Time 00:39:18 Cumulative 28.4 hours Start 2025.10.11 @ 10:19:32 End 2025.10.12 @ 10:28:28 Sessions 7 Manual Loads 0 Difficulty Rogue Special Mode None Game No. 42 Rogue 15 Adventurer 0 Explorer 27 Win Type - Total 0 Types 0/0/0/0/0/0/0/0/0/0 Lore% 19 Gallery% 34 Achievement% 27 Wizard Run 0 Options --------- Layout 1 ASCII 0 Keyboard 0 Movement Mouse Keybinds 0 Fullscreen 2 Font 16/SmallcapsGlow Map View 50x35 Zoom Use 0% Tactical HUD 1 Map Filters NONE Filters NONE Steam X RUN: f7bc14f0-1513-4da3-8973-fb3139e4b584